[Event "*** SCC Grand Prix: Titled Tuesday Blitz"]
[Site "Chess.com"]
[Date "2020.06.09"]
[Round "5"]
[White "Sam_ChessMood"]
[Black "cassoulet"]
[Result "1-0"]
[WhiteElo "2822"]
[BlackElo "2615"]
[TimeControl "180+1"]
[EndTime "9:57:12 PDT"]
[Termination "Sam_ChessMood won by checkmate"]

1. e4 {[%clk 0:03:00.9]} 1... c5 {[%clk 0:02:59.1]} 2. Nf3 {[%clk 0:02:59.7]}
2... Nc6 {[%clk 0:02:59]} 3. d4 {[%clk 0:02:57.9]} 3... cxd4 {[%clk 0:02:59.1]}
4. Nxd4 {[%clk 0:02:58.8]} 4... Nf6 {[%clk 0:02:59.2]} 5. Nc3 {[%clk 0:02:58.3]}
5... d6 {[%clk 0:02:59.2]} 6. Bg5 {[%clk 0:02:57.4]} 6... e6 {[%clk 0:02:58.4]}
7. Qd3 {[%clk 0:02:55.8]} 7... a6 {[%clk 0:02:58.7]} 8. O-O-O {[%clk 0:02:54.7]}
8... Bd7 {[%clk 0:02:54.9]} 9. f4 {[%clk 0:02:50.4]} 9... h6 {[%clk 0:02:50.1]}
10. Bh4 {[%clk 0:02:46.2]} 10... g5 {[%clk 0:02:49.5]} 11. fxg5 {[%clk
0:02:33.3]} 11... Ng4 {[%clk 0:02:49.3]} 12. Nf3 {[%clk 0:02:22.9]} 12... Nge5
{[%clk 0:02:42.8]} 13. Qe3 {[%clk 0:01:56.5]} 13... Be7 {[%clk 0:02:41.7]} 14.
Kb1 {[%clk 0:01:52.5]} 14... Nxf3 {[%clk 0:02:34.7]} 15. gxf3 {[%clk 0:01:52.5]}
15... hxg5 {[%clk 0:02:34.8]} 16. Bg3 {[%clk 0:01:52.4]} 16... Ne5 {[%clk
0:02:33]} 17. Be2 {[%clk 0:01:32.5]} 17... Qc7 {[%clk 0:02:28.7]} 18. Rd2 {[%clk
0:01:26.6]} 18... O-O-O {[%clk 0:02:25.7]} 19. Rhd1 {[%clk 0:01:26.5]} 19... Bc6
{[%clk 0:02:25.2]} 20. a3 {[%clk 0:01:22]} 20... Kb8 {[%clk 0:02:24.9]} 21. Na2
{[%clk 0:01:22]} 21... Rc8 {[%clk 0:02:15]} 22. Nb4 {[%clk 0:01:19.2]} 22... Qa5
{[%clk 0:01:53.3]} 23. Rxd6 {[%clk 0:01:05.4]} 23... Bxd6 {[%clk 0:01:46.6]} 24.
Rxd6 {[%clk 0:01:06.3]} 24... Ka8 {[%clk 0:01:26.4]} 25. Bf2 {[%clk 0:01:00.3]}
25... Kb8 {[%clk 0:01:16.9]} 26. Qa7+ {[%clk 0:00:35.6]} 26... Kc7 {[%clk
0:01:15.1]} 27. Nxa6+ {[%clk 0:00:35.6]} 27... Kxd6 {[%clk 0:01:10.2]} 28. Bc5+
{[%clk 0:00:35.7]} 28... Kd7 {[%clk 0:00:35.8]} 29. Nb8+ {[%clk 0:00:35.6]}
29... Rxb8 {[%clk 0:00:36.1]} 30. Qxa5 {[%clk 0:00:35.9]} 30... f6 {[%clk
0:00:33.9]} 31. Qd2+ {[%clk 0:00:33.1]} 31... Ke8 {[%clk 0:00:34]} 32. Qd6
{[%clk 0:00:32.1]} 32... Kf7 {[%clk 0:00:33.4]} 33. Qe7+ {[%clk 0:00:32.4]}
33... Kg6 {[%clk 0:00:33.3]} 34. Qxe6 {[%clk 0:00:32.8]} 34... Bd7 {[%clk
0:00:31.9]} 35. Qd6 {[%clk 0:00:25.6]} 35... Rbd8 {[%clk 0:00:31.6]} 36. Qb6
{[%clk 0:00:19.7]} 36... Bc6 {[%clk 0:00:29.1]} 37. Bg1 {[%clk 0:00:14]} 37...
Rd2 {[%clk 0:00:28.1]} 38. Qe3 {[%clk 0:00:14.1]} 38... Rhd8 {[%clk 0:00:27.4]}
39. Bf2 {[%clk 0:00:13.6]} 39... Ba4 {[%clk 0:00:26.1]} 40. b3 {[%clk
0:00:13.2]} 40... Bc6 {[%clk 0:00:25.6]} 41. Be1 {[%clk 0:00:13.5]} 41... R2d7
{[%clk 0:00:22.4]} 42. h4 {[%clk 0:00:12.5]} 42... Nf7 {[%clk 0:00:19.1]} 43.
hxg5 {[%clk 0:00:12.3]} 43... Nxg5 {[%clk 0:00:19.9]} 44. Bc3 {[%clk 0:00:12.5]}
44... Ne6 {[%clk 0:00:19.8]} 45. Kb2 {[%clk 0:00:12.8]} 45... Nd4 {[%clk
0:00:20]} 46. Bxd4 {[%clk 0:00:12.8]} 46... Rxd4 {[%clk 0:00:20.9]} 47. Bd3
{[%clk 0:00:13.4]} 47... Kg7 {[%clk 0:00:20.4]} 48. Qf4 {[%clk 0:00:13.8]} 48...
R4d6 {[%clk 0:00:19.8]} 49. e5 {[%clk 0:00:13.4]} 49... fxe5 {[%clk 0:00:20.7]}
50. Qxe5+ {[%clk 0:00:13.7]} 50... Kf7 {[%clk 0:00:21]} 51. Bc4+ {[%clk
0:00:13.4]} 51... Kf8 {[%clk 0:00:20.9]} 52. Qh8+ {[%clk 0:00:13.5]} 52... Ke7
{[%clk 0:00:20.8]} 53. Qg7+ {[%clk 0:00:13.9]} 53... Ke8 {[%clk 0:00:20]} 54.
Qf7# {[%clk 0:00:14.2]} 1-0

[Event "*** SCC Grand Prix: Titled Tuesday Blitz"]
[Site "Chess.com"]
[Date "2020.06.09"]
[Round "5"]
[White "pawnwonder"]
[Black "SARGISMV"]
[Result "0-1"]
[WhiteElo "2173"]
[BlackElo "2412"]
[TimeControl "180+1"]
[EndTime "9:57:15 PDT"]
[Termination "SARGISMV won by checkmate"]

1. e4 {[%clk 0:03:00.9]} 1... c5 {[%clk 0:02:59.2]} 2. Nf3 {[%clk 0:03:00.4]}
2... Nc6 {[%clk 0:02:58.5]} 3. Bb5 {[%clk 0:02:53.4]} 3... g6 {[%clk 0:02:57.8]}
4. Bxc6 {[%clk 0:02:53.5]} 4... dxc6 {[%clk 0:02:57.6]} 5. d3 {[%clk 0:02:53.6]}
5... Bg7 {[%clk 0:02:58]} 6. h3 {[%clk 0:02:51.2]} 6... Nf6 {[%clk 0:02:58.1]}
7. O-O {[%clk 0:02:49.4]} 7... O-O {[%clk 0:02:58.1]} 8. Nc3 {[%clk 0:02:48.5]}
8... Nd7 {[%clk 0:02:51.2]} 9. Be3 {[%clk 0:02:46.4]} 9... e5 {[%clk 0:02:49.1]}
10. a3 {[%clk 0:02:43.4]} 10... Re8 {[%clk 0:02:45.1]} 11. b4 {[%clk 0:02:42.7]}
11... cxb4 {[%clk 0:02:39.1]} 12. axb4 {[%clk 0:02:43.6]} 12... a5 {[%clk
0:02:35.6]} 13. Qd2 {[%clk 0:02:31.1]} 13... Nf8 {[%clk 0:02:14.8]} 14. Ne2
{[%clk 0:02:27.7]} 14... a4 {[%clk 0:02:13.5]} 15. Rfb1 {[%clk 0:02:11]} 15...
b5 {[%clk 0:02:09.6]} 16. Bh6 {[%clk 0:02:04.6]} 16... Qc7 {[%clk 0:02:02.6]}
17. Bxg7 {[%clk 0:02:03.2]} 17... Kxg7 {[%clk 0:02:03.5]} 18. Qc3 {[%clk
0:02:04.1]} 18... f6 {[%clk 0:02:03.1]} 19. Qb2 {[%clk 0:01:39.5]} 19... Ne6
{[%clk 0:02:00.1]} 20. c3 {[%clk 0:01:32.1]} 20... Bd7 {[%clk 0:01:51.6]} 21. d4
{[%clk 0:01:30.9]} 21... Rad8 {[%clk 0:01:44.4]} 22. Rd1 {[%clk 0:01:26.3]}
22... Nf4 {[%clk 0:01:43.6]} 23. dxe5 {[%clk 0:01:13.2]} 23... fxe5 {[%clk
0:01:22.1]} 24. Nxf4 {[%clk 0:01:11.7]} 24... exf4 {[%clk 0:00:57.6]} 25. c4+
{[%clk 0:01:11.3]} 25... Kg8 {[%clk 0:00:54.4]} 26. cxb5 {[%clk 0:00:55.9]}
26... cxb5 {[%clk 0:00:55.3]} 27. Rac1 {[%clk 0:00:55.3]} 27... Qb7 {[%clk
0:00:46.1]} 28. Ne5 {[%clk 0:00:50.8]} 28... Be6 {[%clk 0:00:29.2]} 29. Rxd8
{[%clk 0:00:16.2]} 29... Rxd8 {[%clk 0:00:30.1]} 30. h4 {[%clk 0:00:13.2]} 30...
Qxe4 {[%clk 0:00:28.5]} 31. Nc6 {[%clk 0:00:12.9]} 31... Re8 {[%clk 0:00:21.6]}
32. Qf6 {[%clk 0:00:10.7]} 32... Bd5 {[%clk 0:00:20.2]} 33. Qg5 {[%clk
0:00:07.1]} 33... Bxc6 {[%clk 0:00:18.8]} 34. h5 {[%clk 0:00:07]} 34... Qf5
{[%clk 0:00:17.5]} 35. Qxf5 {[%clk 0:00:06.7]} 35... gxf5 {[%clk 0:00:18.4]} 36.
Rxc6 {[%clk 0:00:07.1]} 36... f3 {[%clk 0:00:18.6]} 37. gxf3 {[%clk 0:00:07.2]}
37... Ra8 {[%clk 0:00:19.2]} 38. h6 {[%clk 0:00:06.5]} 38... a3 {[%clk
0:00:19.1]} 39. Rc1 {[%clk 0:00:06.5]} 39... Kf7 {[%clk 0:00:17.6]} 40. Kf1
{[%clk 0:00:06.3]} 40... Ke6 {[%clk 0:00:18.1]} 41. Ke2 {[%clk 0:00:06.8]} 41...
Kd5 {[%clk 0:00:18.7]} 42. Kd3 {[%clk 0:00:07.3]} 42... a2 {[%clk 0:00:18.2]}
43. Ra1 {[%clk 0:00:07.4]} 43... Ra3+ {[%clk 0:00:18.2]} 44. Kc2 {[%clk
0:00:07.5]} 44... Kc4 {[%clk 0:00:19.1]} 45. Kb2 {[%clk 0:00:07.7]} 45... Kxb4
{[%clk 0:00:19.4]} 46. Rxa2 {[%clk 0:00:08]} 46... Rxa2+ {[%clk 0:00:20.3]} 47.
Kxa2 {[%clk 0:00:08.9]} 47... Kc3 {[%clk 0:00:20.8]} 48. Ka3 {[%clk 0:00:09.1]}
48... b4+ {[%clk 0:00:20.5]} 49. Ka2 {[%clk 0:00:10]} 49... Kc2 {[%clk
0:00:20.9]} 50. Ka1 {[%clk 0:00:10.3]} 50... b3 {[%clk 0:00:21.8]} 51. f4 {[%clk
0:00:11.2]} 51... b2+ {[%clk 0:00:22.3]} 52. Ka2 {[%clk 0:00:12.1]} 52... b1=Q+
{[%clk 0:00:23]} 53. Ka3 {[%clk 0:00:13]} 53... Qb3# {[%clk 0:00:23.2]} 0-1

[Event "*** SCC Grand Prix: Titled Tuesday Blitz"]
[Site "Chess.com"]
[Date "2020.06.09"]
[Round "5"]
[White "Ural_bogatyr"]
[Black "Thipsay"]
[Result "1/2-1/2"]
[WhiteElo "2309"]
[BlackElo "2438"]
[TimeControl "180+1"]
[EndTime "9:57:16 PDT"]
[Termination "Game drawn by repetition"]

1. e4 {[%clk 0:03:00.9]} 1... e5 {[%clk 0:02:59.1]} 2. Nf3 {[%clk 0:03:00.3]}
2... Nc6 {[%clk 0:02:59.3]} 3. Bb5 {[%clk 0:02:59.8]} 3... a6 {[%clk 0:02:58.8]}
4. Bxc6 {[%clk 0:02:59.8]} 4... dxc6 {[%clk 0:02:58.5]} 5. O-O {[%clk
0:03:00.7]} 5... Bg4 {[%clk 0:02:58.1]} 6. h3 {[%clk 0:03:00.5]} 6... h5 {[%clk
0:02:58.1]} 7. d3 {[%clk 0:03:00.4]} 7... Qf6 {[%clk 0:02:58]} 8. Nbd2 {[%clk
0:02:59.9]} 8... Ne7 {[%clk 0:02:51.2]} 9. Nc4 {[%clk 0:02:59.4]} 9... Bxf3
{[%clk 0:02:48.9]} 10. Qxf3 {[%clk 0:03:00.3]} 10... Qxf3 {[%clk 0:02:48.9]} 11.
gxf3 {[%clk 0:03:01.2]} 11... Ng6 {[%clk 0:02:48.9]} 12. Rd1 {[%clk 0:03:00.2]}
12... O-O-O {[%clk 0:02:45.7]} 13. Kf1 {[%clk 0:02:59.4]} 13... Be7 {[%clk
0:02:41.2]} 14. Ke2 {[%clk 0:02:58]} 14... Bf6 {[%clk 0:02:37.1]} 15. Be3 {[%clk
0:02:56.6]} 15... Nf8 {[%clk 0:02:31.9]} 16. a4 {[%clk 0:02:54.5]} 16... Ne6
{[%clk 0:02:31.6]} 17. c3 {[%clk 0:02:54.2]} 17... g6 {[%clk 0:02:25.4]} 18. b4
{[%clk 0:02:53.4]} 18... b6 {[%clk 0:02:09.4]} 19. Nd2 {[%clk 0:02:41]} 19...
Kb7 {[%clk 0:02:06.6]} 20. Nb3 {[%clk 0:02:40.1]} 20... Rd7 {[%clk 0:01:51]} 21.
Rd2 {[%clk 0:02:28.9]} 21... Ng5 {[%clk 0:01:47.6]} 22. Rh1 {[%clk 0:02:23.3]}
22... Rhd8 {[%clk 0:01:38.4]} 23. d4 {[%clk 0:01:38.5]} 23... Ne6 {[%clk
0:01:35.9]} 24. dxe5 {[%clk 0:01:28.3]} 24... Bxe5 {[%clk 0:01:33.3]} 25. Rxd7
{[%clk 0:01:24]} 25... Rxd7 {[%clk 0:01:33.2]} 26. c4 {[%clk 0:01:22]} 26...
Nf4+ {[%clk 0:01:27.6]} 27. Bxf4 {[%clk 0:01:20]} 27... Bxf4 {[%clk 0:01:27.7]}
28. Rd1 {[%clk 0:01:19.1]} 28... Kc8 {[%clk 0:01:26]} 29. Nd4 {[%clk 0:01:13.2]}
29... Rd6 {[%clk 0:01:20.9]} 30. c5 {[%clk 0:01:06]} 30... bxc5 {[%clk
0:01:20.2]} 31. bxc5 {[%clk 0:01:06.9]} 31... Rf6 {[%clk 0:01:19.9]} 32. Nc2
{[%clk 0:00:30.7]} 32... Re6 {[%clk 0:01:12.8]} 33. Nd4 {[%clk 0:00:29.8]} 33...
Rf6 {[%clk 0:01:12.4]} 34. Nc2 {[%clk 0:00:29.2]} 34... Be5 {[%clk 0:01:04.8]}
35. Ke3 {[%clk 0:00:23.2]} 35... g5 {[%clk 0:00:56.4]} 36. Nb4 {[%clk
0:00:20.6]} 36... Bf4+ {[%clk 0:00:52.3]} 37. Ke2 {[%clk 0:00:19.4]} 37... a5
{[%clk 0:00:46.8]} 38. Nd3 {[%clk 0:00:18.9]} 38... Bh2 {[%clk 0:00:34.8]} 39.
Rh1 {[%clk 0:00:17.9]} 39... Bf4 {[%clk 0:00:34.2]} 40. Rg1 {[%clk 0:00:17.6]}
40... Rg6 {[%clk 0:00:28.8]} 41. Nxf4 {[%clk 0:00:12.2]} 41... gxf4 {[%clk
0:00:27.9]} 42. Rxg6 {[%clk 0:00:09.3]} 42... fxg6 {[%clk 0:00:27.9]} 43. Kd3
{[%clk 0:00:08.6]} 43... Kd7 {[%clk 0:00:25]} 44. Kd4 {[%clk 0:00:06.2]} 44...
Ke6 {[%clk 0:00:25.2]} 45. Kc4 {[%clk 0:00:05.8]} 45... Ke5 {[%clk 0:00:25]} 46.
Kd3 {[%clk 0:00:05.6]} 46... g5 {[%clk 0:00:25.2]} 47. Kc4 {[%clk 0:00:05.3]}
47... Ke6 {[%clk 0:00:25.1]} 48. Kd4 {[%clk 0:00:04.9]} 48... Kf6 {[%clk
0:00:24.5]} 49. Kc4 {[%clk 0:00:04.7]} 49... Ke5 {[%clk 0:00:24.5]} 50. Kd3
{[%clk 0:00:04.6]} 50... Ke6 {[%clk 0:00:24.6]} 51. Kd4 {[%clk 0:00:05.5]} 51...
Kf6 {[%clk 0:00:24.8]} 52. Kd3 {[%clk 0:00:04.4]} 52... Ke6 {[%clk 0:00:24.8]}
53. Kd4 {[%clk 0:00:04.2]} 1/2-1/2

[Event "*** SCC Grand Prix: Titled Tuesday Blitz"]
[Site "Chess.com"]
[Date "2020.06.09"]
[Round "5"]
[White "esrosenberg"]
[Black "Nikolaj_6"]
[Result "0-1"]
[WhiteElo "2211"]
[BlackElo "2553"]
[TimeControl "180+1"]
[EndTime "9:57:17 PDT"]
[Termination "Nikolaj_6 won by checkmate"]

1. Nf3 {[%clk 0:03:00.9]} 1... Nf6 {[%clk 0:02:58.8]} 2. c4 {[%clk 0:03:00.3]}
2... g6 {[%clk 0:02:58.8]} 3. Nc3 {[%clk 0:02:59.7]} 3... Bg7 {[%clk 0:02:59]}
4. e4 {[%clk 0:02:59.4]} 4... d6 {[%clk 0:02:59.2]} 5. d4 {[%clk 0:02:59.4]}
5... O-O {[%clk 0:02:59.3]} 6. h3 {[%clk 0:03:00.1]} 6... c5 {[%clk 0:02:57.7]}
7. d5 {[%clk 0:02:59.7]} 7... e6 {[%clk 0:02:57.3]} 8. Bd3 {[%clk 0:02:59.7]}
8... exd5 {[%clk 0:02:56.9]} 9. exd5 {[%clk 0:03:00.6]} 9... Re8+ {[%clk
0:02:56.3]} 10. Be3 {[%clk 0:03:00.6]} 10... Nbd7 {[%clk 0:02:53.9]} 11. O-O
{[%clk 0:03:00.3]} 11... Ne5 {[%clk 0:02:54]} 12. Nxe5 {[%clk 0:02:59.7]} 12...
Rxe5 {[%clk 0:02:54.5]} 13. Qd2 {[%clk 0:02:59.9]} 13... a6 {[%clk 0:02:54.1]}
14. Rae1 {[%clk 0:02:58.5]} 14... Bd7 {[%clk 0:02:53.8]} 15. Bf4 {[%clk
0:02:56]} 15... Rxe1 {[%clk 0:02:52.6]} 16. Rxe1 {[%clk 0:02:55.4]} 16... Ne8
{[%clk 0:02:52.4]} 17. Qe3 {[%clk 0:02:31.9]} 17... b5 {[%clk 0:02:49.1]} 18.
Qe7 {[%clk 0:02:26.1]} 18... b4 {[%clk 0:02:39.1]} 19. Nd1 {[%clk 0:02:02.1]}
19... Qxe7 {[%clk 0:02:34.4]} 20. Rxe7 {[%clk 0:02:00.7]} 20... Rd8 {[%clk
0:02:32.8]} 21. b3 {[%clk 0:01:50.7]} 21... Kf8 {[%clk 0:02:29.2]} 22. Re1
{[%clk 0:01:37.9]} 22... a5 {[%clk 0:02:28]} 23. g4 {[%clk 0:01:30.1]} 23... a4
{[%clk 0:02:20.7]} 24. Kg2 {[%clk 0:01:20.5]} 24... Ra8 {[%clk 0:02:18.2]} 25.
Bc2 {[%clk 0:00:56.4]} 25... axb3 {[%clk 0:02:17.2]} 26. Bxb3 {[%clk 0:00:53.4]}
26... Ba4 {[%clk 0:02:16.4]} 27. Re3 {[%clk 0:00:41.3]} 27... Bxb3 {[%clk
0:02:15.6]} 28. axb3 {[%clk 0:00:41.7]} 28... Bd4 {[%clk 0:02:05.6]} 29. Rd3
{[%clk 0:00:33]} 29... Ra2 {[%clk 0:01:59.6]} 30. Ne3 {[%clk 0:00:28.1]} 30...
Ke7 {[%clk 0:01:50.7]} 31. Bg3 {[%clk 0:00:23.4]} 31... Nf6 {[%clk 0:01:47.6]}
32. g5 {[%clk 0:00:18.2]} 32... Ne4 {[%clk 0:01:46.1]} 33. Ng4 {[%clk
0:00:18.2]} 33... f5 {[%clk 0:01:28.1]} 34. gxf6+ {[%clk 0:00:17.5]} 34... Kf7
{[%clk 0:01:22]} 35. Bh4 {[%clk 0:00:13.9]} 35... g5 {[%clk 0:01:17.4]} 36. Bg3
{[%clk 0:00:12.2]} 36... h5 {[%clk 0:01:16.8]} 37. Nh6+ {[%clk 0:00:10.4]} 37...
Kxf6 {[%clk 0:01:15.4]} 38. Rf3+ {[%clk 0:00:10.4]} 38... Kg6 {[%clk 0:01:15]}
39. Nf5 {[%clk 0:00:09.1]} 39... h4 {[%clk 0:00:58.1]} 40. Bxd6 {[%clk
0:00:06.1]} 40... Bxf2 {[%clk 0:00:34.8]} 41. Kh1 {[%clk 0:00:02.7]} 41... Ra1+
{[%clk 0:00:31.8]} 42. Kg2 {[%clk 0:00:01.8]} 42... Ra2 {[%clk 0:00:28.6]} 43.
Kh1 {[%clk 0:00:01.8]} 43... Nxd6 {[%clk 0:00:26.1]} 44. Nxd6 {[%clk 0:00:01.4]}
44... Bg3 {[%clk 0:00:26.2]} 45. Nf7 {[%clk 0:00:01.6]} 45... Rh2+ {[%clk
0:00:23.1]} 46. Kg1 {[%clk 0:00:02.5]} 46... Rd2 {[%clk 0:00:21.7]} 47. Nd8
{[%clk 0:00:03.4]} 47... g4 {[%clk 0:00:19.4]} 48. Ne6 {[%clk 0:00:04.3]} 48...
gxf3 {[%clk 0:00:18.8]} 49. Nf4+ {[%clk 0:00:03.6]} 49... Bxf4 {[%clk
0:00:18.2]} 50. d6 {[%clk 0:00:04.2]} 50... Bg3 {[%clk 0:00:18.1]} 51. Kf1
{[%clk 0:00:04.1]} 51... Rd1# {[%clk 0:00:18.2]} 0-1

[Event "*** SCC Grand Prix: Titled Tuesday Blitz"]
[Site "Chess.com"]
[Date "2020.06.09"]
[Round "5"]
[White "ElviraBerend"]
[Black "SCIM"]
[Result "1-0"]
[WhiteElo "2400"]
[BlackElo "2536"]
[TimeControl "180+1"]
[EndTime "9:57:19 PDT"]
[Termination "ElviraBerend won on time"]

1. d4 {[%clk 0:02:59.4]} 1... Nf6 {[%clk 0:02:58.6]} 2. c4 {[%clk 0:02:58]} 2...
g6 {[%clk 0:02:58.3]} 3. Nf3 {[%clk 0:02:57.1]} 3... Bg7 {[%clk 0:02:57.2]} 4.
g3 {[%clk 0:02:57]} 4... O-O {[%clk 0:02:55.9]} 5. Bg2 {[%clk 0:02:56.9]} 5...
d5 {[%clk 0:02:55.5]} 6. cxd5 {[%clk 0:02:54.6]} 6... Nxd5 {[%clk 0:02:56.4]} 7.
O-O {[%clk 0:02:54.4]} 7... Nc6 {[%clk 0:02:55]} 8. Nc3 {[%clk 0:02:52.2]} 8...
Nb6 {[%clk 0:02:52.6]} 9. e3 {[%clk 0:02:45.4]} 9... Re8 {[%clk 0:02:48.1]} 10.
Nh4 {[%clk 0:02:39.1]} 10... e5 {[%clk 0:02:45.3]} 11. d5 {[%clk 0:02:38.3]}
11... Na5 {[%clk 0:02:37.8]} 12. e4 {[%clk 0:02:37.5]} 12... Nac4 {[%clk
0:02:35.5]} 13. b3 {[%clk 0:02:31.6]} 13... Nd6 {[%clk 0:02:34.8]} 14. Bb2
{[%clk 0:02:30.5]} 14... f5 {[%clk 0:02:08.3]} 15. exf5 {[%clk 0:02:27.7]} 15...
gxf5 {[%clk 0:02:09.2]} 16. Qh5 {[%clk 0:02:06.1]} 16... Bd7 {[%clk 0:01:53.3]}
17. Rae1 {[%clk 0:02:00]} 17... Qf6 {[%clk 0:01:42.2]} 18. Bc1 {[%clk
0:01:46.4]} 18... Qf7 {[%clk 0:01:34.8]} 19. Qxf7+ {[%clk 0:01:41.7]} 19... Kxf7
{[%clk 0:01:34.5]} 20. Bd2 {[%clk 0:01:33.8]} 20... e4 {[%clk 0:01:31.4]} 21. g4
{[%clk 0:01:25.7]} 21... Bxc3 {[%clk 0:01:25]} 22. Bxc3 {[%clk 0:01:24.9]} 22...
Bb5 {[%clk 0:01:25.7]} 23. gxf5 {[%clk 0:01:18.9]} 23... Bxf1 {[%clk 0:01:24.6]}
24. Kxf1 {[%clk 0:01:17]} 24... Nxd5 {[%clk 0:01:23.9]} 25. Bd2 {[%clk
0:01:14.7]} 25... Nf6 {[%clk 0:01:08.1]} 26. Bh3 {[%clk 0:01:12.5]} 26... Rad8
{[%clk 0:01:05.8]} 27. Be3 {[%clk 0:01:09]} 27... Nd5 {[%clk 0:00:57.4]} 28. Bg5
{[%clk 0:01:07.1]} 28... Nf6 {[%clk 0:00:53.2]} 29. Ng2 {[%clk 0:01:04.7]} 29...
Rg8 {[%clk 0:00:49.5]} 30. Bf4 {[%clk 0:01:01]} 30... Ng4 {[%clk 0:00:40.5]} 31.
Rc1 {[%clk 0:00:54.7]} 31... c6 {[%clk 0:00:37.5]} 32. Rd1 {[%clk 0:00:45.5]}
32... e3 {[%clk 0:00:21.7]} 33. fxe3 {[%clk 0:00:38.3]} 33... Nxf5 {[%clk
0:00:10.7]} 34. Rxd8 {[%clk 0:00:36.5]} 34... Ngxe3+ {[%clk 0:00:06]} 35. Nxe3
{[%clk 0:00:34.4]} 35... Nxe3+ {[%clk 0:00:06.9]} 36. Bxe3 {[%clk 0:00:34.4]}
36... Rxd8 {[%clk 0:00:07.8]} 37. Ke2 {[%clk 0:00:33.4]} 37... a6 {[%clk
0:00:06.8]} 38. Bf5 {[%clk 0:00:30.9]} 38... h5 {[%clk 0:00:06]} 39. h4 {[%clk
0:00:30.6]} 39... Rd5 {[%clk 0:00:06.5]} 40. Be4 {[%clk 0:00:29.6]} 40... Ra5
{[%clk 0:00:06.4]} 41. a4 {[%clk 0:00:28.7]} 41... Re5 {[%clk 0:00:06.2]} 42.
Kd3 {[%clk 0:00:27.5]} 42... Re8 {[%clk 0:00:05.4]} 43. Bg5 {[%clk 0:00:26.7]}
43... Re6 {[%clk 0:00:03.4]} 44. Bf3 {[%clk 0:00:26.2]} 44... Rd6+ {[%clk
0:00:03.6]} 45. Kc4 {[%clk 0:00:25]} 45... Kg6 {[%clk 0:00:03.3]} 46. Be4+
{[%clk 0:00:24.5]} 46... Kf7 {[%clk 0:00:02.7]} 47. Kc5 {[%clk 0:00:24]} 47...
Re6 {[%clk 0:00:02.4]} 48. Kd4 {[%clk 0:00:23.5]} 48... Rd6+ {[%clk 0:00:02]}
49. Kc4 {[%clk 0:00:23.1]} 49... Rd1 {[%clk 0:00:02.1]} 50. Bf3 {[%clk
0:00:22.7]} 50... Rg1 {[%clk 0:00:01.2]} 51. Bxh5+ {[%clk 0:00:22.3]} 51... Ke6
{[%clk 0:00:02.1]} 52. Be2 {[%clk 0:00:20.3]} 52... Kd6 {[%clk 0:00:01.1]} 53.
Kd3 {[%clk 0:00:19.1]} 1-0

[Event "*** SCC Grand Prix: Titled Tuesday Blitz"]
[Site "Chess.com"]
[Date "2020.06.09"]
[Round "5"]
[White "IAgrest"]
[Black "Martins-BR"]
[Result "0-1"]
[WhiteElo "2224"]
[BlackElo "2082"]
[TimeControl "180+1"]
[EndTime "9:57:21 PDT"]
[Termination "Martins-BR won on time"]

1. e4 {[%clk 0:03:00.9]} 1... c5 {[%clk 0:02:58.9]} 2. Nf3 {[%clk 0:03:01]} 2...
e6 {[%clk 0:02:59]} 3. d4 {[%clk 0:03:01.5]} 3... cxd4 {[%clk 0:02:59.7]} 4.
Nxd4 {[%clk 0:03:02.4]} 4... Nc6 {[%clk 0:02:59.7]} 5. Nc3 {[%clk 0:03:02.2]}
5... Qc7 {[%clk 0:02:59.7]} 6. Be3 {[%clk 0:02:59.7]} 6... a6 {[%clk 0:02:59.3]}
7. Qf3 {[%clk 0:02:59.1]} 7... d6 {[%clk 0:02:55.9]} 8. O-O-O {[%clk 0:02:58.4]}
8... Bd7 {[%clk 0:02:55]} 9. Qg3 {[%clk 0:02:52.4]} 9... Nf6 {[%clk 0:02:52.5]}
10. Be2 {[%clk 0:02:52]} 10... b5 {[%clk 0:02:51.7]} 11. a3 {[%clk 0:02:48.2]}
11... Rb8 {[%clk 0:02:50.7]} 12. f4 {[%clk 0:02:41.4]} 12... b4 {[%clk
0:02:36.7]} 13. axb4 {[%clk 0:02:40.8]} 13... Rxb4 {[%clk 0:02:33]} 14. Bf3
{[%clk 0:02:23.2]} 14... Na5 {[%clk 0:01:39.8]} 15. e5 {[%clk 0:02:18.4]} 15...
dxe5 {[%clk 0:01:38]} 16. fxe5 {[%clk 0:02:18.1]} 16... Ng8 {[%clk 0:01:33.8]}
17. Be2 {[%clk 0:02:05.2]} 17... Nc4 {[%clk 0:01:31.4]} 18. Bxc4 {[%clk
0:02:04.5]} 18... Rxc4 {[%clk 0:01:31]} 19. Rd2 {[%clk 0:02:02.1]} 19... Rxc3
{[%clk 0:01:28.8]} 20. bxc3 {[%clk 0:01:59.7]} 20... Qxc3 {[%clk 0:01:28.6]} 21.
Nb3 {[%clk 0:01:49.7]} 21... Ba3+ {[%clk 0:01:25.4]} 22. Kd1 {[%clk 0:01:48.4]}
22... Ne7 {[%clk 0:01:24]} 23. Bd4 {[%clk 0:01:27.1]} 23... Qxg3 {[%clk
0:00:54.6]} 24. hxg3 {[%clk 0:01:28]} 24... O-O {[%clk 0:00:52.5]} 25. Nc5
{[%clk 0:01:20.9]} 25... Bb5 {[%clk 0:00:46.5]} 26. Ne4 {[%clk 0:01:08.6]} 26...
Nf5 {[%clk 0:00:44]} 27. Bf2 {[%clk 0:01:07.8]} 27... h6 {[%clk 0:00:37.6]} 28.
g4 {[%clk 0:01:06.2]} 28... Ne7 {[%clk 0:00:37.3]} 29. g5 {[%clk 0:01:06]} 29...
hxg5 {[%clk 0:00:33.3]} 30. Nxg5 {[%clk 0:01:06.9]} 30... Ng6 {[%clk 0:00:30.1]}
31. Bd4 {[%clk 0:00:57.5]} 31... Bc6 {[%clk 0:00:22.2]} 32. Nf3 {[%clk
0:00:44.2]} 32... Rc8 {[%clk 0:00:16.3]} 33. c3 {[%clk 0:00:35.5]} 33... Be7
{[%clk 0:00:12.2]} 34. Ke2 {[%clk 0:00:19.3]} 34... Bd5 {[%clk 0:00:11.8]} 35.
Kf2 {[%clk 0:00:18.5]} 35... Nf4 {[%clk 0:00:10.3]} 36. g3 {[%clk 0:00:16.8]}
36... Ng6 {[%clk 0:00:09.5]} 37. Rh5 {[%clk 0:00:11.4]} 37... Rb8 {[%clk
0:00:09]} 38. Ng5 {[%clk 0:00:10.8]} 38... Bxg5 {[%clk 0:00:07.6]} 39. Rxg5
{[%clk 0:00:11.7]} 39... Rb3 {[%clk 0:00:06.9]} 40. Rh5 {[%clk 0:00:09.8]} 40...
Ne7 {[%clk 0:00:05.9]} 41. g4 {[%clk 0:00:09.1]} 41... g6 {[%clk 0:00:05.5]} 42.
Rh3 {[%clk 0:00:08.2]} 42... Nc6 {[%clk 0:00:05.6]} 43. Re3 {[%clk 0:00:07.3]}
43... a5 {[%clk 0:00:04.4]} 44. Re1 {[%clk 0:00:02.9]} 44... a4 {[%clk
0:00:04.4]} 45. Ra1 {[%clk 0:00:02.8]} 45... a3 {[%clk 0:00:04.5]} 46. Rda2
{[%clk 0:00:01.7]} 46... Na5 {[%clk 0:00:04.4]} 47. Rxa3 {[%clk 0:00:01.7]}
47... Rb2+ {[%clk 0:00:04.6]} 48. Ke3 {[%clk 0:00:01.5]} 48... Nc4+ {[%clk
0:00:05.5]} 0-1